bitfinex/quotes_ETHUSD_20250210
["timestamp","ask_amount","ask_price","bid_price","bid_amount"]
[1739197811151,3.75329,2664.4,2663.7,0.7554]
[1739197811367,3.75297,2664.6,2663.7,9.6154]
[1739197811535,3.75297,2664.6,2664.1,0.7554]
[1739197811741,0.8291,2664.7,2664.1,0.7554]
[1739197811943,4.58199,2664.7,2664.1,4.5089]
[1739197812282,3.75325,2664.4,2664.1,0.7554]
[1739197812569,3.75305,2664.5,2664.1,0.7554]
[1739197812864,3.75306,2664.5,2664.1,0.7554]
[1739197813379,2.90916736,2664.8,2664.1,0.7554]
[1739197813668,3.75279,2664.7,2664.1,4.50898]
[1739197813987,3.75279,2664.7,2664.1,4.50892]
[1739197814134,0.7717,2665.0,2664.1,0.7554]
[1739197814331,3.75211,2665.2,2664.7,3.75274]
[1739197814583,3.75187,2665.4,2664.7,3.75274]
[1739197814864,0.7717,2665.6,2664.6,4.5219]
[1739197814865,3.75214,2665.2,2664.6,4.5219]
[1739197815046,3.75214,2665.2,2664.6,4.5594249]
[1739197815246,3.75244,2665.0,2664.6,0.7691]
[1739197815638,3.75214,2665.2,2664.6,0.7691]
[1739197815840,3.7523,2665.1,2664.6,0.7691]
[1739197816177,3.75242,2665.0,2664.6,0.7691]
[1739197816383,3.75242,2665.0,2664.3,9.6291]
[1739197816384,0.7717,2665.0,2664.3,9.6291]
[1739197816530,3.75301,2664.6,2664.3,9.6291]
[1739197816731,3.75313,2664.5,2664.3,0.7691]
[1739197816942,3.75319,2664.4,2664.3,0.7691]
[1739197817172,3.75305,2664.5,2663.9,0.7691]
[1739197817173,6.66220736,2664.5,2663.9,0.7691]
[1739197817481,3.75338,2664.3,2663.6,0.7691]
[1739197817684,3.75417,2663.7,2663.6,9.6291]
[1739197817976,3.75432,2663.6,2663.3,9.6291]
[1739197818333,3.75405,2663.8,2663.3,9.6291]
[1739197819141,2.90916736,2664.2,2663.4,3.75459]
[1739197819340,3.7541,2663.8,2663.3,9.6291]
[1739197819844,3.75355,2664.2,2663.4,8.89754187]
[1739197820075,3.68086736,2664.5,2663.8,3.75391]
[1739197820076,3.75326,2664.4,2663.8,3.75391]
[1739197820296,3.75338,2664.3,2663.8,3.75391]
[1739197820584,3.75348,2664.2,2663.7,8.86]
[1739197820781,7.50708,2664.2,2663.7,8.86]
[1739197820996,3.7537,2664.1,2663.7,8.86]
[1739197821163,3.75403,2663.8,2663.7,8.86]
[1739197821366,3.75403,2663.8,2663.1,0.7691]
[1739197821687,3.75488,2663.2,2663.1,0.7691]
[1739197822063,3.75474,2663.3,2663.1,0.7691]
[1739197822269,3.75488,2663.2,2662.9,8.86]
[1739197822560,3.75488,2663.2,2662.8,0.7691]
[1739197822779,3.75513,2663.1,2662.8,0.7691]
[1739197823091,3.75513,2663.1,2662.7,8.86]
[1739197823092,3.75538,2662.9,2662.7,8.86]
[1739197823305,3.75508,2663.1,2662.7,8.86]
[1739197823450,3.75516,2663.0,2662.7,8.86]
[1739197823647,3.75445,2663.5,2662.7,8.86]
[1739197823847,3.75572,2662.6,2662.5,0.7691]
[1739197824061,3.75572,2662.6,2662.2,0.8129]
[1739197824260,3.75596,2662.5,2662.2,0.8129]
[1739197824457,3.756,2662.4,2662.3,0.05684764]
[1739197824707,10.46906736,2662.4,2662.3,0.05684764]
[1739197824928,3.75629,2662.2,2662.1,6.97e-06]
[1739197826211,3.75629,2662.2,2662.1,0.0572006]
[1739197826579,3.75629,2662.2,2662.1,6.97e-06]
[1739197826780,6.75629,2662.2,2662.1,6.97e-06]
[1739197827119,7.56019,2662.2,2662.1,6.97e-06]
[1739197827891,0.8039,2662.2,2662.1,6.97e-06]
[1739197828142,3.75629,2662.2,2662.1,6.97e-06]
[1739197828635,3.75629,2662.2,2662.1,0.0572006]
[1739197828832,3.75629,2662.2,2662.1,6.97e-06]
[1739197828990,4.54399,2662.2,2662.1,6.97e-06]
[1739197831104,5.30485832,2662.2,2662.1,6.97e-06]
[1739197832830,8.85485832,2662.2,2662.1,6.97e-06]
[1739197833233,10.93215664,2661.7,2661.6,2.88e-06]
[1739197834121,11.48215664,2661.7,2661.6,2.88e-06]
[1739197834445,10.93215664,2661.7,2661.6,2.88e-06]
[1739197834603,4.17516664,2662.0,2661.6,2.88e-06]
[1739197834809,3.75629,2662.2,2661.7,0.7879]
[1739197835038,3.38746664,2662.6,2661.7,0.7879]
[1739197835216,3.75605,2662.4,2661.8,0.05797891]
[1739197835753,3.75605,2662.4,2661.8,3.81472891]
[1739197836119,3.75657,2662.1,2661.8,0.05797891]
[1739197836312,3.75657,2662.1,2661.7,0.7879]
[1739197836313,3.75652,2662.1,2661.7,0.7879]
[1739197836649,3.75652,2662.1,2661.8,0.05872366]
[1739197836848,3.38746664,2662.6,2661.8,0.05872366]
[1739197837147,0.7877,2662.9,2661.8,0.05872366]
[1739197837148,3.0,2662.8,2661.9,0.05864371]
[1739197837319,3.75657,2662.0,2661.9,0.05864371]
[1739197837724,3.75657,2662.0,2661.6,2.88e-06]
[1739197837725,3.75699,2661.7,2661.6,2.88e-06]
[1739197837925,3.75699,2661.7,2661.6,0.05888646]
[1739197838122,10.14445664,2661.7,2661.6,0.05888646]
[1739197838555,10.93215664,2661.7,2661.6,0.05888646]
[1739197838914,10.93215664,2661.7,2661.6,2.88e-06]
[1739197839323,11.48215664,2661.7,2661.6,2.88e-06]
[1739197841067,3.0,2661.7,2661.6,2.88e-06]
[1739197841361,10.14445664,2661.7,2661.6,2.88e-06]
[1739197841720,10.14445664,2661.7,2661.6,0.05903288]
[1739197841924,10.14445664,2661.7,2661.6,2.88e-06]
[1739197842361,10.93215664,2661.7,2661.6,2.88e-06]
[1739197843128,11.6658669,2661.7,2661.6,2.88e-06]
[1739197843637,3.75699,2661.7,2661.6,2.88e-06]
[1739197843965,7.14445664,2661.7,2661.6,2.88e-06]
[1739197844448,3.75694,2661.8,2661.6,2.88e-06]
[1739197844666,7.51388,2661.8,2661.6,0.83787726]
[1739197844826,7.51389,2661.8,2661.6,0.77880288]
[1739197845029,7.43964664,2662.3,2661.7,3.81587679]
[1739197845291,0.296,2662.3,2661.9,3.75666]
[1739197845453,3.38746664,2662.6,2661.7,0.05889679]
[1739197845651,3.75569,2662.7,2662.2,0.7788]
[1739197846043,3.75569,2662.7,2662.3,0.05813767]
[1739197846249,5.44989326,2662.9,2662.5,3.75586]
[1739197846250,2.06242662,2662.9,2662.5,3.75586]
[1739197846431,2.06242662,2662.9,2662.3,0.05813767]
[1739197846432,2.06242662,2662.9,2662.4,3.75593]
[1739197846767,2.06242662,2662.9,2662.7,0.7788]
[1739197846932,3.75572,2662.6,2662.5,0.05765411]
[1739197847129,6.75572,2662.6,2662.5,4.11e-06]
[1739197847356,3.75678,2661.9,2661.7,0.7788]
[1739197847669,3.75685,2661.8,2661.7,0.7788]
[1739197847868,3.75699,2661.7,2661.4,0.7788]
[1739197848574,3.75685,2661.8,2661.4,0.7788]
[1739197849156,3.75659,2662.0,2661.4,0.7788]
[1739197849342,3.75694,2661.8,2661.4,0.7788]
[1739197849549,3.75659,2662.0,2661.4,0.7788]
[1739197849749,3.75688,2661.8,2661.4,0.7788]
[1739197849977,7.14351664,2662.4,2661.4,0.7788]
[1739197850279,5.81782662,2662.9,2662.4,0.7788]
[1739197850487,2.06242662,2662.9,2662.5,3.75584]
[1739197850663,2.06242662,2662.9,2662.4,4.53467]
[1739197850870,3.38746664,2663.2,2662.6,3.7557]
[1739197851092,3.38746664,2663.5,2662.5,3.75586]
[1739197851388,4.58423,2664.0,2663.4,3.75451]
[1739197851690,3.38746664,2664.1,2663.5,3.75445]
[1739197851855,3.75404,2663.8,2663.4,0.03754176]
[1739197852186,3.7544,2663.6,2663.3,0.7788]
[1739197852557,3.75409,2663.8,2663.3,0.7788]
[1739197852784,7.14116664,2664.1,2663.3,0.7788]
[1739197853089,3.75446,2663.5,2663.3,0.7788]
[1739197853303,3.75443,2663.6,2663.3,0.7788]
[1739197853450,3.38746664,2664.1,2662.9,8.86]
[1739197853777,3.75491,2663.2,2663.0,0.7788]
[1739197853949,3.75453,2663.5,2663.0,0.7788]
[1739197854356,3.75424,2663.7,2663.0,0.7788]
[1739197854357,3.75422,2663.7,2663.0,0.7788]
[1739197854575,3.75464,2663.4,2663.0,0.7788]
[1739197854782,3.75464,2663.4,2663.1,0.05443764]
[1739197854979,3.75433,2663.6,2663.1,0.05443764]
[1739197855153,3.75447,2663.5,2663.1,0.05443764]
[1739197855350,3.0,2664.0,2663.1,0.05443764]
[1739197855590,3.75487,2663.3,2663.1,0.05443764]
[1739197855795,0.55,2664.3,2663.1,0.05443764]
[1739197856005,3.75388,2664.0,2663.3,3.75473]
[1739197856203,3.75388,2664.0,2663.4,3.75459]
[1739197856506,3.75392,2663.9,2663.4,3.80878805]
[1739197856711,3.75403,2663.8,2663.4,0.05419805]
[1739197856856,3.75432,2663.6,2663.4,0.05419805]
[1739197857188,3.75432,2663.6,2663.5,0.05411819]
[1739197857553,3.75432,2663.6,2663.2,8.86]
[1739197857754,3.75409,2663.8,2663.3,0.05427791]
[1739197857988,3.7538,2664.0,2663.2,12.61476]
[1739197858231,3.7539,2663.9,2663.4,3.80878805]
[1739197858428,3.97412811,2664.5,2663.2,12.61476]
[1739197858429,3.7544,2663.6,2663.3,0.05427791]
[1739197858595,3.75375,2664.0,2663.5,0.05411819]
[1739197858930,3.75445,2663.5,2663.4,0.05371055]
[1739197859222,6.97412811,2663.7,2662.3,0.7728]
[1739197859389,3.75544,2662.8,2662.3,9.6328]
[1739197859589,3.75524,2663.0,2662.4,3.75599]
[1739197859793,3.75524,2663.0,2662.5,3.75581]
[1739197860228,3.75465,2663.4,2662.4,0.0375557]
[1739197860428,0.7973,2663.9,2662.6,3.7728]
[1739197860429,3.75409,2663.8,2662.6,3.7728]
[1739197860592,3.75375,2664.0,2663.4,0.7728]
[1739197860796,3.75375,2664.0,2663.1,0.7728]
[1739197860996,3.75461,2663.4,2663.1,0.7728]
[1739197861196,3.75524,2663.0,2662.7,8.86]
[1739197861627,3.75516,2663.0,2662.7,8.86]
[1739197861833,3.75558,2662.7,2662.6,0.7728]
[1739197862037,3.756,2662.4,2662.3,0.7728]
[1739197862282,3.75130516,2662.4,2662.3,0.7728]
[1739197862416,3.75130516,2662.4,2661.9,0.7728]
[1739197862617,3.75587,2662.5,2662.0,3.75657]
[1739197862813,3.75602,2662.4,2661.9,0.7728]
[1739197863012,0.7973,2662.8,2661.9,0.7728]
[1739197863013,3.75647,2662.1,2661.9,0.7728]
[1739197863349,3.75647,2662.1,2661.7,8.86]
[1739197863753,3.75614,2662.4,2661.8,3.7568]
[1739197863931,3.75646,2662.1,2661.7,8.86]
[1739197864129,3.75645,2662.1,2661.7,8.86]
[1739197864583,3.7973,2662.8,2661.7,8.86]
[1739197864584,3.75678,2661.9,2661.7,8.86]
[1739197864722,3.75671,2662.0,2661.7,8.86]
[1739197865236,3.75685,2661.8,2661.7,8.86]
[1739197865416,3.75685,2661.8,2661.6,0.77280288]
[1739197865417,3.75634,2662.2,2661.6,0.77280288]
[1739197865622,3.7973,2662.8,2662.1,3.75643]
[1739197865623,7.51137,2662.7,2662.1,3.75643]
[1739197865918,3.75595,2662.5,2661.9,3.75659]
[1739197866123,3.7556,2662.7,2661.9,0.03756351]
[1739197866322,3.75514,2663.1,2662.1,0.7728]
[1739197866522,3.7549,2663.2,2662.6,3.75569]
[1739197866832,0.3,2664.2,2662.0,11.86]
[1739197866833,3.7545,2663.5,2662.7,4.52835]
[1739197867034,3.75478,2663.3,2662.7,4.52835]
[1739197867236,3.75427,2663.7,2663.1,3.75501]
[1739197867437,3.7544,2663.6,2663.1,3.75501]
[1739197867641,3.75452,2663.5,2662.9,12.6153]
[1739197867955,3.7541,2663.8,2662.9,8.86]
[1739197868125,3.7541,2663.8,2663.1,3.7549]
[1739197868320,3.75436,2663.6,2663.1,3.7549]
[1739197868523,8.52495811,2664.2,2663.0,0.7728]
[1739197868524,3.7538,2664.0,2663.0,0.7728]
[1739197868724,3.75401,2663.9,2663.3,3.75462]
[1739197869169,3.75401,2663.9,2663.4,0.05224296]
[1739197869393,3.75343,2664.3,2663.5,0.7728]
[1739197869673,3.75322,2664.4,2663.7,3.75408]
[1739197869890,3.75322,2664.4,2663.7,7.50817]
[1739197870042,3.75322,2664.4,2663.8,0.05192359]
[1739197870423,0.7973,2664.9,2663.8,8.94946068]
[1739197870661,3.75321,2664.4,2663.8,0.05192359]
[1739197870823,7.50597,2664.6,2663.8,0.05192359]
[1739197871042,3.75308,2664.5,2663.9,3.75387]
[1739197871228,3.75293,2664.6,2663.8,0.05192359]
[1739197871432,3.7529,2664.6,2664.0,0.05176393]
[1739197871681,3.75344,2664.3,2663.9,0.05184376]
[1739197871886,3.75307,2664.5,2664.1,0.05168412]
[1739197872081,3.75277,2664.7,2664.0,0.05176393]
[1739197872282,3.75315,2664.5,2664.2,0.0516043]
[1739197872584,3.75277,2664.7,2664.3,0.0515245]
[1739197872744,0.8232,2665.3,2664.5,3.75298]
[1739197873001,0.8232,2665.7,2665.4,3.75177]
[1739197873165,4.51875527,2666.1,2665.4,3.75168]
[1739197873487,3.75014,2666.6,2666.0,3.75083]
[1739197873488,0.8232,2666.6,2666.0,3.75083]
[1739197873789,0.8232,2666.9,2666.1,0.04962409]
[1739197873985,3.75065,2666.2,2666.1,0.04962409]
[1739197874144,3.75065,2666.2,2665.6,8.86]
[1739197874344,3.74981,2666.8,2665.9,3.75107]
[1739197874659,3.8232,2666.9,2666.0,0.04970379]
[1739197874848,3.75035,2666.5,2666.0,0.04970379]
[1739197875051,3.7507,2666.2,2665.5,4.5216]
[1739197875344,7.50118,2666.3,2665.6,3.75139]
[1739197875678,3.75046,2666.4,2665.8,3.75121]
[1739197875863,4.57294,2666.9,2666.3,3.75048]
[1739197876060,3.74985,2666.8,2666.2,0.77]
[1739197876249,3.75023,2666.5,2666.4,0.04799452]
[1739197876454,0.295,2667.2,2666.3,0.0480742]
[1739197876657,3.74964,2667.0,2666.3,3.75042]
[1739197876876,3.74977,2666.9,2666.4,0.04799452]
[1739197877497,3.74998,2666.7,2666.4,0.04799452]
[1739197877657,3.75023,2666.6,2666.2,9.63]
[1739197877852,3.75023,2666.6,2666.5,0.04749922]
[1739197878048,3.75033,2666.5,2666.2,0.77]
[1739197878261,3.75051,2666.3,2666.0,8.86]
[1739197878593,3.75093,2666.0,2665.9,1.80818297]
[1739197879098,7.30093,2666.0,2665.9,1.80818297]
[1739197879304,7.57413,2666.0,2665.9,1.80818297]
[1739197879447,6.75093,2666.0,2665.9,1.80818297]
[1739197879790,3.75018,2666.6,2666.0,3.75084]
[1739197879974,3.75048,2666.4,2665.9,1.80818297]
[1739197880286,3.75051,2666.3,2665.9,1.80818297]
[1739197880693,3.74977,2666.9,2666.2,3.75056]
[1739197880893,3.74977,2666.9,2666.3,7.53839015]
[1739197881077,3.74917,2667.3,2666.6,3.75006]
[1739197881248,3.7493,2667.2,2666.7,0.77]
[1739197881452,3.74917,2667.3,2666.7,4.51993]
[1739197881893,3.74801,2668.1,2667.2,3.74916]
[1739197882057,3.74836,2667.9,2666.9,8.86]
[1739197882265,7.49624,2668.0,2666.9,8.86]
[1739197882473,3.74877,2667.6,2667.0,3.74943]
[1739197882788,3.74816,2668.0,2667.3,3.74907]
[1739197883011,3.74816,2668.0,2667.4,0.03748907]
[1739197883190,3.74816,2668.0,2667.3,0.77]
[1739197883362,3.74851,2667.8,2667.3,0.77]
[1739197883687,3.74854,2667.7,2667.3,0.77]
[1739197883990,3.74815,2668.0,2667.3,0.77]
[1739197884198,3.74815,2668.0,2667.4,0.04657914]
[1739197884408,3.74791,2668.2,2667.4,0.04657914]
[1739197884717,3.74791,2668.2,2667.4,3.79541914]
[1739197884897,3.74812,2668.0,2667.4,3.79541914]
[1739197885078,3.74829,2667.9,2667.4,0.04657914]
[1739197885409,3.74812,2668.0,2667.4,0.04657914]
[1739197885571,3.75263,2668.4,2667.4,0.04657914]
[1739197885572,3.74838,2667.9,2667.4,0.04657914]
[1739197885768,3.74841,2667.8,2667.4,0.04657914]
[1739197886405,3.74881,2667.6,2667.4,0.04657914]
[1739197887284,3.7488,2667.6,2667.4,0.04657914]
[1739197887496,3.74882,2667.5,2667.4,0.04657914]
[1739197887678,4.57152,2667.9,2666.9,0.77]
[1739197887679,3.74929,2667.2,2666.9,0.77]
[1739197888210,3.74948,2667.1,2666.9,0.77]
[1739197888372,3.74878,2667.6,2666.9,0.77]
[1739197888573,0.8232,2668.3,2667.0,0.03749138]
[1739197888782,3.74822,2668.0,2667.5,0.77]
[1739197889013,3.74822,2668.0,2667.5,0.80748352]
[1739197889316,3.74835,2667.9,2667.5,0.77]
[1739197889528,3.74822,2668.0,2667.5,0.77]
[1739197889814,7.49583,2668.2,2667.6,3.78612266]
[1739197890017,3.74803,2668.1,2667.6,8.89748266]
[1739197890312,3.74803,2668.1,2667.6,8.86]
[1739197890514,3.74801,2668.1,2667.6,12.60867]
[1739197890715,3.74845,2667.8,2667.7,1.80720536]
[1739197891094,3.7484,2667.8,2667.7,1.80720536]
[1739197891296,3.74854,2667.7,2667.6,8.86]
[1739197891900,3.7484,2667.8,2667.6,8.86]
[1739197892107,3.7482,2668.0,2667.6,8.86]
[1739197892401,3.7484,2667.8,2667.6,8.86]
[1739197892731,3.74794,2668.2,2667.6,12.6086]
[1739197893051,3.74794,2668.2,2667.6,8.86]
[1739197894059,3.74793,2668.2,2667.6,12.60865]
[1739197894232,3.748,2668.1,2667.6,8.86]
[1739197894550,3.74813,2668.0,2667.6,8.86]
[1739197894709,0.005,2668.4,2667.6,12.60866]
[1739197894710,3.75264,2668.4,2667.6,12.60866]
[1739197894905,3.74779,2668.3,2667.8,3.74839]
[1739197895122,3.74779,2668.3,2667.8,12.60839]
[1739197895345,3.75264,2668.4,2667.9,4.51818]
[1739197895670,0.005,2668.4,2668.0,0.03747622]
[1739197895869,0.005,2668.4,2668.0,3.74798]
[1739197896252,0.005,2668.4,2667.9,9.63]
[1739197896461,3.74772,2668.3,2667.9,9.63]
[1739197896641,3.74797,2668.2,2667.9,9.63]
[1739197897283,3.75263,2668.4,2667.9,9.63]
[1739197897444,0.005,2668.4,2667.9,13.37816]
[1739197897759,3.74787,2668.2,2667.9,9.63]
[1739197897956,3.75268,2668.4,2667.9,9.63]
[1739197898344,0.005,2668.4,2668.0,3.74803]
[1739197898544,0.005,2668.4,2668.1,3.74796]
[1739197898732,0.005,2668.4,2668.2,3.74774]
[1739197899059,0.005,2668.4,2668.3,3.7477]
[1739197899261,0.005,2668.4,2668.3,13.45864401]
[1739197899476,0.005,2668.4,2668.3,13.42117225]
[1739197902088,0.005,2668.4,2668.3,9.67347225]
[1739197902788,0.005,2668.4,2668.3,13.42117225]
[1739197903559,0.005,2668.4,2668.3,16.42117225]
[1739197903993,1e-05,2668.4,2668.3,16.42117225]
[1739197905976,1e-05,2668.4,2668.3,18.22528845]
[1739197908182,1e-05,2668.4,2668.3,2.61758845]
[1739197908478,1e-05,2668.4,2668.3,1.84758845]
[1739197909659,1e-05,2668.4,2668.3,5.59528845]
[1739197910246,1e-05,2668.4,2668.3,5.63275747]
[1739197910444,1e-05,2668.4,2668.3,14.49275747]
[1739197910659,1e-05,2668.4,2668.3,15.23308845]
[1739197912454,1e-05,2668.4,2668.3,11.48538845]
[1739197912662,1e-05,2668.4,2668.3,1.84758845]
[1739197912882,3.74757,2668.4,2668.3,1.84758845]
[1739197913605,4.29757,2668.4,2668.3,1.84758845]
[1739197913898,7.29757,2668.4,2668.3,1.8041162]
[1739197914457,8.12927,2668.4,2668.3,1.8041162]
[1739197914887,4.57927,2668.4,2668.3,1.8041162]
[1739197915153,0.83171,2668.4,2668.3,1.84549389]
[1739197915353,1e-05,2668.4,2668.3,0.04137769]
[1739197915592,1e-05,2668.4,2667.9,4.52595]
[1739197915792,1e-05,2668.4,2668.0,0.04161641]
[1739197916025,1e-05,2668.4,2668.1,3.74797]
[1739197916309,1e-05,2668.4,2668.1,8.86]
[1739197916489,3.7477,2668.3,2668.2,0.04167761]
[1739197916654,1e-05,2668.4,2668.2,0.04167761]
[1739197916858,3.74759,2668.4,2668.2,0.04167761]
[1739197917112,3.7477,2668.3,2668.2,0.04167761]
[1739197917404,3.74759,2668.4,2668.2,0.04167761]
[1739197918185,1e-05,2668.4,2668.2,0.04167761]
[1739197918388,1e-05,2668.4,2668.3,4.5255]
[1739197918548,1e-05,2668.4,2668.3,4.56700548]
[1739197920110,1e-05,2668.4,2668.3,13.46447755]
[1739197920253,1e-05,2668.4,2668.3,16.42700548]
[1739197920751,1e-05,2668.4,2668.3,16.40550548]
[1739197923957,1e-05,2668.4,2668.3,16.95550548]
[1739197924313,1e-05,2668.4,2668.3,17.15550548]
[1739197924972,1e-05,2668.4,2668.3,16.40550548]
[1739197929723,1e-05,2668.4,2668.3,20.3236784]
[1739197930033,3.0,2670.2,2669.5,3.74589]
[1739197930034,0.8131,2670.0,2669.5,3.74589]
[1739197930200,0.8131,2670.0,2669.3,3.7462]
[1739197930201,4.55844,2670.0,2669.3,3.7462]
[1739197930401,0.8131,2670.0,2669.4,0.04041038]
[1739197930637,3.74594,2669.6,2669.4,8.86]
[1739197930808,3.74594,2669.6,2669.5,0.04017236]
[1739197930995,4.55904,2669.6,2669.5,0.04017236]
[1739197931196,3.74601,2669.5,2669.4,8.86]
[1739197931507,3.747,2668.8,2667.9,5.92074]
[1739197931814,3.747,2668.8,2668.0,5.17072174]
[1739197932019,3.74764,2668.4,2668.0,5.17072174]
[1739197932223,3.74735,2668.6,2668.0,5.17072174]
[1739197932442,0.8131,2668.9,2668.1,5.11384]
[1739197932731,0.7891,2668.2,2668.0,0.05688174]
[1739197932952,3.74822,2668.0,2667.7,0.96011101]
[1739197933096,3.7484,2667.8,2667.7,0.96011101]
[1739197933331,4.537,2668.2,2667.7,0.96011101]
[1739197933530,0.7891,2668.2,2667.8,0.037481]
[1739197933743,0.7891,2668.2,2667.8,3.78587959]
[1739197933919,4.29734,2668.6,2667.8,3.78585959]
[1739197933920,3.74734,2668.6,2667.8,3.78585959]
[1739197934119,4.53644,2668.6,2667.8,3.78585959]
[1739197934378,0.7891,2668.6,2667.8,3.74839]
[1739197934557,4.5365,2668.6,2668.1,3.74798]
[1739197934726,0.7891,2669.1,2668.3,0.7551]
[1739197934921,0.7891,2669.1,2669.0,3.74672]
[1739197935120,0.7891,2669.4,2668.8,3.74691]
[1739197935476,0.7891,2669.4,2668.8,3.7469]
[1739197935625,0.7891,2669.4,2668.6,0.03746411]
[1739197935626,3.74632,2669.3,2668.7,3.74712]
[1739197935827,0.7891,2669.4,2668.8,3.74695]
[1739197936040,0.7891,2669.4,2669.0,3.74658]
[1739197936337,3.74577,2669.7,2669.2,3.74643]
[1739197936545,0.7891,2669.8,2669.2,3.74633]
[1739197936746,0.7891,2669.8,2669.3,7.52990836]
[1739197936965,0.7891,2669.8,2669.3,3.74619]
[1739197937366,3.74539,2670.0,2669.3,3.74619]
[1739197937541,0.7891,2670.1,2669.5,3.74601]
[1739197937747,4.53434,2670.1,2669.5,3.746]
[1739197937943,0.7891,2670.1,2669.7,3.74573]
[1739197938147,0.7891,2670.5,2669.6,5.11384]
[1739197938376,4.53375,2670.5,2669.9,3.74543]
[1739197938732,0.7891,2670.5,2669.4,5.11384]
[1739197939072,0.7891,2670.5,2670.0,3.7453]
[1739197939275,0.7891,2670.5,2670.0,5.11384]
[1739197939439,0.14478,2670.6,2670.5,3.74461]
[1739197940848,0.14478,2670.6,2670.5,8.85845]
[1739197941037,1e-05,2670.6,2670.5,11.85845]
[1739197941669,1e-05,2670.6,2670.5,12.81732678]
[1739197942059,1e-05,2670.6,2670.5,9.81732678]
[1739197943149,1e-05,2670.6,2670.5,6.07271678]
[1739197943539,1e-05,2670.6,2670.5,0.95887678]
[1739197943540,3.74448,2670.6,2670.5,0.95887678]
[1739197943733,7.53358,2670.6,2670.5,0.95887678]
[1739197944341,8.08358,2670.6,2670.5,0.95887678]
[1739197944939,1.33911,2670.6,2670.5,0.95887678]
[1739197945451,5.08358,2670.6,2670.5,0.95887678]
[1739197945970,0.78911,2670.6,2670.5,0.95887678]
[1739197946153,1e-05,2670.6,2670.5,0.95887678]
[1739197946351,1e-05,2670.6,2670.5,4.70348678]
[1739197946568,3.74448,2670.6,2670.5,0.95887678]
[1739197946772,3.74448,2670.6,2670.5,6.78e-06]
[1739197946773,5.08358,2670.6,2670.5,6.78e-06]
[1739197946956,0.7891,2669.9,2669.3,3.74616]
[1739197947286,0.7891,2669.9,2669.3,3.74621]
[1739197947483,4.53459,2669.9,2669.2,3.0]
[1739197947685,0.7891,2669.9,2669.2,3.0]
[1739197947850,0.7891,2669.9,2669.1,5.11384]
[1739197947851,3.74611,2669.5,2669.1,5.11384]
[1739197948355,0.7891,2669.9,2669.1,5.11384]
[1739197948683,0.7891,2669.9,2669.6,3.74577]
[1739197948977,0.7891,2670.3,2669.8,3.7455]
[1739197949177,4.53401,2670.3,2669.6,3.78323364]
[1739197949385,3.74503,2670.2,2669.2,3.0]
[1739197949540,3.74584,2669.7,2669.1,5.11384]
[1739197949745,0.7891,2670.0,2669.0,5.11384]
[1739197949988,3.74598,2669.6,2669.0,5.11384]
[1739197950142,3.74672,2669.0,2668.9,5.11384]
[1739197950346,3.0,2669.9,2668.8,5.11384]
[1739197950592,3.74694,2668.9,2668.7,0.95975124]
[1739197950842,3.747,2668.8,2668.7,0.95975124]
[1739197951260,3.74772,2668.3,2668.0,5.11384]
[1739197951488,3.74734,2668.6,2667.9,0.7551]
[1739197951783,3.74566,2669.8,2667.6,5.11384]
[1739197951784,0.7891,2669.4,2669.0,3.74671]
[1739197952002,3.74564,2669.8,2669.1,3.74655]
[1739197952209,3.74562,2669.8,2669.1,7.49301]
[1739197952361,3.74562,2669.8,2669.1,3.74648]
[1739197952563,3.74559,2669.8,2668.8,0.7551]
[1739197952801,3.74563,2669.8,2669.1,3.74647]
[1739197953099,3.74563,2669.8,2668.8,0.79256096]
[1739197953100,0.7891,2670.1,2668.9,0.03745787]
[1739197953300,0.7891,2670.1,2668.8,7.50204]
[1739197953301,0.7891,2670.1,2669.6,3.74583]
[1739197953611,0.7891,2670.1,2669.7,3.74562]
[1739197953923,3.745,2670.3,2669.7,3.74562]
[1739197954224,1e-05,2670.6,2669.7,3.74562]
[1739197954225,1e-05,2670.6,2670.4,3.74473]
[1739197954362,1e-05,2670.6,2670.1,3.74508]
[1739197954560,1e-05,2670.6,2670.2,0.8132]
[1739197954815,1e-05,2670.6,2670.3,3.74489]
[1739197954961,1e-05,2670.6,2670.5,3.74461]
[1739197955162,1e-05,2670.6,2670.3,3.74489]
[1739197955163,1e-05,2670.6,2670.1,3.74516]
[1739197955411,1e-05,2670.6,2670.0,5.11384]
[1739197955742,1e-05,2670.6,2670.4,3.74462]
[1739197955911,1e-05,2670.6,2670.5,3.74461]
[1739197956058,1e-05,2670.6,2670.4,3.74462]
[1739197956263,1e-05,2670.6,2670.5,4.55781]
[1739197956667,1e-05,2670.6,2670.4,5.11384]
[1739197957307,3.74461,2670.5,2670.4,5.11384]
[1739197957508,1e-05,2670.6,2669.7,0.8132]
[1739197957813,1e-05,2670.6,2669.7,4.55891]
[1739197957961,0.55001,2670.6,2669.3,0.8132]
[1739197958163,0.7599,2670.1,2669.4,0.07003716]
[1739197958520,3.74531,2670.0,2669.4,0.07003716]
[1739197958721,0.7599,2670.4,2669.5,0.03745435]
[1739197958872,1e-05,2670.6,2669.9,3.7454]
[1739197959068,1e-05,2670.6,2670.0,3.7453]
[1739197959305,1e-05,2670.6,2670.1,3.74517]
[1739197959523,1e-05,2670.6,2670.5,3.74461]
[1739197959725,1e-05,2670.6,2670.3,5.92704]
[1739197960032,1e-05,2670.6,2670.3,9.67192]
[1739197960246,1e-05,2670.6,2670.3,9.67184]
[1739197960412,1e-05,2670.6,2670.3,5.11384]
[1739197960602,1e-05,2670.6,2670.0,0.8132]
[1739197960803,3.74471,2670.5,2669.9,8.85927]
[1739197961010,0.75991,2670.6,2669.7,4.55885]
[1739197961207,3.7449,2670.3,2669.7,4.55883]